fUSD/lending_fUSD_20251026
["ID","MTS","AMOUNT","RATE_DAILY","PERIOD"]
[392415931,1761453037583,-250.0,0.0003,5]
[392415939,1761453039782,-155.36444436,0.0003,5]
[392415940,1761453039793,-504.52843035,0.0003,5]
[392415941,1761453039803,-503.15832314,0.0003,5]
[392415942,1761453039811,-531.0099295,0.0003,3]
[392415943,1761453039820,-428.79845824,0.0003,2]
[392415954,1761453042684,-74.76590107,0.0003,2]
[392415955,1761453042695,-273.82409893,0.00030029,2]
[392415966,1761453045566,-202.78785329,0.00030029,2]
[392415967,1761453045575,-57.84214671,0.00030087,2]
[392415983,1761453590114,-275.18521214,0.00029204,2]
[392415984,1761453591697,-230.15815529,0.00029204,2]
[392415985,1761453596272,-74.65663257,0.00029204,2]
[392415986,1761453596293,-159.50336743,0.00029204,2]
[392415987,1761453599261,-140.49663257,0.00029204,2]
[392415988,1761453599281,-166.06798402,0.00029204,2]
[392415989,1761453604818,-157.74185746,0.00029196,2]
[392415990,1761453607665,-259.41936587,0.00029196,2]
[392415991,1761453612530,-96.76877667,0.00029196,2]
[392415992,1761453612574,-133.93201598,0.00029204,2]
[392415993,1761453612602,-185.24538795,0.00029204,2]
[392415994,1761453635622,-151.0,0.00029203,7]
[392415995,1761453635644,-114.75461205,0.00029204,2]
[392415996,1761453635665,-13.48598648,0.00029204,2]
[392415997,1761453643027,-188.31477724,0.00029204,2]
[392415999,1761453645761,-250.0,0.00029204,2]
[392416002,1761453647659,-372.663432,0.00029204,2]
[392416003,1761453666276,-185.0,0.00029204,2]
[392416004,1761453667953,-190.53580428,0.00029204,2]
[392416005,1761453667991,-117.00590829,0.00029204,2]
[392416006,1761453670181,-172.74111691,0.00029204,2]
[392416007,1761453672730,-10.2529748,0.00029204,2]
[392416008,1761453672758,-189.7470252,0.00029204,2]
[392416009,1761453675884,-110.2529748,0.00029204,2]
[392416010,1761453675911,-122.42133935,0.00029205,2]
[392416011,1761453678067,-208.60780155,0.00029205,2]
[392416012,1761453679976,-215.86258775,0.00029205,2]
[392416013,1761453684400,-192.31392276,0.00029205,2]
[392416014,1761453687777,-173.12338281,0.00029205,2]
[392416015,1761453703617,40310.0,0.00031,120]
[392416016,1761453710049,-230.16832961,0.00029205,2]
[392416017,1761453711578,-397.31835882,0.00029205,2]
[392416018,1761453715962,-255.68898039,0.00029205,2]
[392416019,1761453717731,-204.49529696,0.00029205,2]
[392416020,1761453717751,-98.9381986,0.00029205,2]
[392416021,1761453719232,-142.91102005,0.00029205,2]
[392416022,1761453719254,-218.2770116,0.00029205,2]
[392416023,1761453719277,-22.73397897,0.00029205,2]
[392416024,1761453740160,-285.0294252,0.00029204,2]
[392416025,1761453743385,-14.9705748,0.00029204,2]
[392416026,1761453743409,-189.62513452,0.00029205,2]
[392416027,1761453743432,-120.8526633,0.00029205,2]
[392416029,1761453770044,-213.5219608,0.00029205,2]
[392416030,1761453773929,-122.95244091,0.00029205,2]
[392416031,1761453773950,-34.78126167,0.00029205,2]
[392416032,1761453775572,-167.1132101,0.00029205,2]
[392416033,1761453779790,-289.93892022,0.00029205,2]
[392416034,1761453785083,-15.48416864,0.00029205,2]
[392416035,1761453785107,-153.5660955,0.00029205,2]
[392416036,1761453815179,-244.74307856,0.00029205,2]
[392416037,1761453815205,-44.99454455,0.00029205,2]
[392416038,1761453819716,-269.55842526,0.00029205,2]
[392416039,1761453822288,-185.44703019,0.00029205,2]
[392416040,1761453822311,-214.55296981,0.00029205,2]
[392416041,1761453824594,-213.33896432,0.00029205,2]
[392416042,1761453828519,-72.10806587,0.00029205,2]
[392416043,1761453828543,-410.75729838,0.00029205,2]
[392416044,1761453845099,-287.34569715,0.00029204,2]
[392416045,1761453847252,-12.65430285,0.00029204,2]
[392416046,1761453847284,-89.24270162,0.00029205,2]
[392416047,1761453847309,-297.10081357,0.00029205,2]
[392416048,1761453848979,-202.89918643,0.00029205,2]
[392416049,1761453849005,-101.53474791,0.00029205,2]
[392416050,1761453851961,-162.59888418,0.00029205,2]
[392416051,1761453853487,-210.06728508,0.00029205,2]
[392416052,1761453855683,-25.79908283,0.00029205,2]
[392416053,1761453855714,-356.05774166,0.00029205,2]
[392416054,1761453859642,-68.94225834,0.00029205,2]
[392416055,1761453859666,-92.78366675,0.00029205,9]
[392416056,1761453861291,-206.04833008,0.00029205,9]
[392416057,1761453862915,-212.40347435,0.00029205,9]
[392416058,1761453862939,-82.82231997,0.00029205,2]
[392416060,1761453895689,226.4,0.00013699,2]
[392416063,1761453998132,-194.40309716,0.00017,2]
[392416073,1761454231892,-55.59690284,0.00017,2]
[392416074,1761454231902,-206.04833008,0.000187,2]
[392416075,1761454231912,-195.0,0.000187,2]
[392416076,1761454231922,-250.0,0.000187,2]
[392416077,1761454231932,-438.60085114,0.000187,2]
[392416078,1761454231941,-226.4,0.00020187,2]
[392416079,1761454231951,-2500.0,0.00022299,2]
[392416080,1761454231960,-226.4,0.00026676,2]
[392416081,1761454231969,-287.23866263,0.0002893,2]
[392416082,1761454231982,-12.76133737,0.0002893,2]
[392416083,1761454231992,-300.0,0.0002893,2]
[392416084,1761454232002,-1200.0,0.0002893,2]
[392416085,1761454232011,-3613.4131678,0.00028931,2]
[392416086,1761454232122,-1736.4554368,0.00028931,2]
[392416087,1761454232133,-3185.07737197,0.00029106,2]
[392416088,1761454232143,-151.0,0.00029188,2]
[392416089,1761454232154,-151.0,0.00029188,2]
[392416090,1761454232163,-151.0,0.00029188,2]
[392416091,1761454232173,-151.0,0.00029188,2]
[392416092,1761454232183,-255.93000578,0.00029188,2]
[392416093,1761454232193,-767.0,0.00029205,2]
[392416094,1761454232205,-500.0,0.00029205,7]
[392416095,1761454232217,-506.73252501,0.00029205,9]
[392416096,1761454232229,-13286.42614431,0.00029206,2]
[392416098,1761454232399,-8449.76242259,0.00029206,2]
[392416100,1761454232408,-41247.58544766,0.00029206,2]
[392416110,1761454237672,-266.938,0.00029205,9]
[392416111,1761454237685,-237.25245883,0.00029205,9]
[392416112,1761454237693,-440.06132684,0.00029206,2]
[392416113,1761454237831,-3585.52203566,0.00029206,2]
[392416122,1761454239853,-512.27802841,0.00029206,2]
[392416123,1761454240824,-1.6e-07,0.00029206,2]
[392416127,1761454242842,-3546.10937386,0.00029206,2]
[392416128,1761454242869,-257.49189635,0.00029206,2]
[392416131,1761454245838,-3113.9567269,0.00029206,2]
[392416132,1761454246004,-491.418375,0.00029206,2]
[392416188,1761454464475,300.0,0.000314,120]
[392416209,1761454837244,-2256.92207723,0.00022,2]
[392416210,1761454837280,-150.0,0.00022,2]
[392416211,1761454837304,-466.0,0.00024832,2]
[392416212,1761454837326,-205.17305614,0.00024832,2]
[392416213,1761454837348,-360.41453977,0.00024882,2]
[392416214,1761454837370,-500.0,0.00024932,2]
[392416215,1761454837392,-500.0,0.00024932,2]
[392416216,1761454837415,-1480.127768,0.00027079,2]
[392416217,1761454837436,-187.96158242,0.00027215,2]
[392416218,1761454837460,-1200.0,0.00027314,2]
[392416219,1761454837482,-300.0,0.00027314,2]
[392416220,1761454837504,-272.0,0.00027314,2]
[392416221,1761454837526,-300.0,0.00027314,2]
[392416222,1761454837548,-250.0,0.00027315,2]
[392416223,1761454837570,-4076.71342205,0.00027315,2]
[392416224,1761454837592,-267.43,0.00028228,2]
[392416225,1761454837618,-1200.0,0.00028718,2]
[392416226,1761454837642,-2898.16409344,0.00028719,2]
[392416227,1761454837664,-187.96158241,0.00028719,2]
[392416228,1761454837688,-13564.5398331,0.00028809,3]
[392416229,1761454837913,-150.0,0.00028816,2]
[392416230,1761454837940,-4121.14244404,0.00028817,2]
[392416231,1761454837962,-1009.88383874,0.00028818,2]
[392416232,1761454837987,-500.0,0.00028818,2]
[392416233,1761454838011,-500.0,0.00028818,2]
[392416234,1761454838034,-500.0,0.00028818,2]
[392416235,1761454838059,-500.0,0.00028818,2]
[392416236,1761454838083,-500.0,0.00028818,2]
[392416237,1761454838107,-500.0,0.00028818,2]
[392416238,1761454838132,-500.0,0.00028818,2]
[392416239,1761454838157,-500.0,0.00028818,2]
[392416240,1761454838187,-500.0,0.00028818,2]
[392416241,1761454838212,-500.0,0.00028818,2]
[392416242,1761454838236,-500.0,0.00028818,2]
[392416243,1761454838261,-500.0,0.00028818,2]
[392416244,1761454838286,-500.0,0.00028818,2]
[392416245,1761454838310,-500.0,0.00028818,2]
[392416246,1761454838333,-500.0,0.00028818,2]
[392416247,1761454838357,-500.0,0.00028818,2]
[392416248,1761454838380,-500.0,0.00028818,2]
[392416249,1761454838407,-482.39567405,0.00028818,2]
[392416250,1761454838431,-500.0,0.00028818,2]
[392416251,1761454838454,-500.0,0.00028818,2]
[392416252,1761454838479,-500.0,0.00028818,2]
[392416253,1761454838503,-500.0,0.00028818,2]
[392416254,1761454838527,-500.0,0.00028818,2]
[392416255,1761454838549,-1442.76,0.00028818,14]
[392416256,1761454838571,-532.2669491,0.00028818,2]
[392416257,1761454838593,-262.03243143,0.00028818,2]
[392416258,1761454838617,-219.0382108,0.00028818,2]
[392416259,1761454838645,-400.16428202,0.00028818,2]
[392416260,1761454838667,-385.85176387,0.00028818,2]
[392416261,1761454838689,-733.48720637,0.00028819,2]
[392416262,1761454838712,-59448.7461345,0.00028819,2]
[392416263,1761454838734,-118897.4922689,0.00028819,2]
[392416264,1761454838756,-9448.1205133,0.00028819,2]
[392416265,1761454838779,-126834.453048,0.00028819,2]
[392416266,1761454838801,-151.000009,0.00028819,30]
[392416267,1761454838824,-173857.75727132,0.00028819,2]
[392416269,1761454863008,150.0,0.00031109,120]
[392416270,1761454864124,2500.0,0.00031109,120]
[392416271,1761454865567,4504.15554682,0.00031109,120]
[392416272,1761454867441,187.35760535,0.00031109,120]
[392416288,1761455103333,180.4,0.00027815,120]
[392416291,1761455137203,12679.85244497,0.0003,120]
[392416371,1761455432803,-150.0,0.0002626,2]
[392416373,1761455432815,-150.0,0.0002626,2]
[392416375,1761455432825,-164.87031678,0.0002626,2]
[392416378,1761455432839,-150.0,0.0002626,2]
[392416380,1761455432853,-155.78310216,0.0002626,2]
[392416383,1761455432866,-150.0,0.0002626,2]
[392416385,1761455432878,-3959.9068997,0.000267,5]
[392416387,1761455432897,-466.0,0.000267,5]
[392416389,1761455432916,-1088.0931003,0.000267,5]
[392416390,1761455432928,-300.0,0.00026899,2]
[392416391,1761455432941,-300.0,0.00026899,2]
[392416392,1761455432952,-1200.0,0.00026899,2]
[392416393,1761455432964,-300.0,0.00026899,2]
[392416394,1761455432976,-300.0,0.00027099,2]
[392416395,1761455432988,-1200.0,0.00027299,2]
[392416396,1761455433000,-869.70827974,0.00027522,2]
[392416397,1761455433012,-254.78,0.00027579,2]
[392416398,1761455433024,-665.67,0.0002759,2]
[392416399,1761455433036,-151.0,0.00027659,2]
[392416400,1761455433048,-1220.86,0.00027711,2]
[392416401,1761455433060,-250.0,0.00027744,2]
[392416402,1761455433073,-869.70827974,0.00027819,2]
[392416403,1761455433085,-2138.53,0.00027973,2]
[392416404,1761455433097,-200.0,0.00028063,2]
[392416405,1761455433108,-869.70827974,0.00028135,2]
[392416406,1761455433120,-156.587,0.00028207,2]
[392416407,1761455433133,-200.0,0.00028281,2]
[392416408,1761455433145,-869.70827974,0.0002837,2]
[392416409,1761455433157,-1501.30721684,0.000285,2]
[392416410,1761455433170,-8112.8735622,0.00028702,2]
[392416411,1761455433182,-375.14611076,0.00028719,2]
[392416412,1761455433194,-190.45917657,0.00028719,2]
[392416413,1761455433207,-869.70827974,0.00028744,2]
[392416414,1761455433219,-162.380719,0.00028755,2]
[392416415,1761455433233,-2423.0,0.00028755,2]
[392416416,1761455433246,-541.27348281,0.00028773,5]
[392416417,1761455433258,-6524.65384994,0.0002879,3]
[392416418,1761455433273,-4201.65523545,0.0002879,3]
[392416419,1761455433288,-1240.78785301,0.0002879,3]
[392416420,1761455433300,-215.37337456,0.00028792,3]
[392416421,1761455433314,-1779.14278184,0.00028792,3]
[392416422,1761455433326,-854.62,0.00028792,3]
[392416423,1761455433341,-1905.0,0.00028792,2]
[392416424,1761455433353,-1994.5161564,0.00028796,3]
[392416425,1761455433366,-500.0,0.00028797,2]
[392416426,1761455433379,-500.0,0.00028797,2]
[392416427,1761455433391,-275.82174156,0.00028797,2]
[392416428,1761455433403,-151.0,0.00028797,7]
[392416429,1761455433418,-15956.1292512,0.00028799,3]
[392416430,1761455433431,-500.0,0.00028799,2]
[392416431,1761455433443,-153.32674756,0.00028799,2]
[392416432,1761455433455,-183.422702,0.00028799,2]
[392416433,1761455433467,-202.26934581,0.00028799,2]
[392416434,1761455433480,-120538.6124677,0.000288,2]
[392416435,1761455433493,-195842.8583006,0.000288,2]
[392416436,1761455433506,-34841.13264439,0.000288,2]
[392416437,1761455433520,-3954.83413781,0.000288,2]
[392416438,1761455433531,-200.0,0.00028802,2]
[392416439,1761455433541,-151.0,0.00028802,2]
[392416440,1761455433550,-151.0,0.00028802,2]
[392416441,1761455433560,-151.0,0.00028802,2]
[392416442,1761455433570,-151.0,0.00028802,2]
[392416443,1761455433580,-151.0,0.00028802,2]
[392416444,1761455433591,-500.0,0.00028802,2]
[392416445,1761455433601,-151.0,0.00028802,2]
[392416446,1761455433611,-151.0,0.00028802,2]
[392416447,1761455433821,-500.0,0.00028802,2]
[392416448,1761455433834,-246.20025685,0.00028802,2]
[392416449,1761455433844,-151.0,0.00028802,2]
[392416450,1761455433853,-500.0,0.00028802,2]
[392416451,1761455433863,-151.0,0.00028802,2]
[392416452,1761455433873,-500.0,0.00028802,2]
[392416453,1761455433883,-151.0,0.00028802,2]
[392416454,1761455433893,-263.05266046,0.00028802,2]
[392416455,1761455433903,-151.0,0.00028802,2]
[392416456,1761455433913,-151.0,0.00028802,2]
[392416457,1761455433923,-151.0,0.00028802,2]
[392416458,1761455433932,-151.0,0.00028802,2]
[392416459,1761455433942,-151.0,0.00028802,2]
[392416460,1761455433951,-151.0,0.00028802,2]
[392416461,1761455433960,-151.0,0.00028802,2]
[392416462,1761455433969,-151.0,0.00028802,2]
[392416463,1761455433979,-151.0,0.00028802,2]
[392416464,1761455433988,-151.0,0.00028802,2]
[392416465,1761455433998,-200.0,0.00028802,2]
[392416466,1761455434007,-151.0,0.00028802,2]
[392416467,1761455434016,-200.0,0.00028802,2]
[392416468,1761455434025,-151.0,0.00028802,2]
[392416469,1761455434037,-151.0,0.00028802,2]
[392416470,1761455434047,-151.0,0.00028802,2]
[392416471,1761455434057,-151.0,0.00028802,2]
[392416472,1761455434067,-1375.11,0.00028802,14]
[392416473,1761455434079,-151.0,0.00028806,7]
[392416474,1761455434090,-151.0,0.00028806,7]
[392416475,1761455434100,-1994.5161564,0.00028808,3]
[392416476,1761455434110,-7909.83290465,0.00028809,3]
[392416477,1761455434123,-5729.34082991,0.00028809,3]
[392416478,1761455434136,-3250.0,0.00028809,3]
[392416479,1761455434169,-2151.53783535,0.00028809,3]
[392416480,1761455434180,-949.15632863,0.00028809,3]
[392416481,1761455434192,-373.2980954,0.00028809,3]
[392416482,1761455437844,-3305.71263873,0.00028809,3]
[392416483,1761455437857,-806.68,0.00028809,3]
[392416484,1761455437900,-577.72401966,0.00028809,3]
[392416485,1761455438010,-267.20910614,0.00028809,3]
[392416487,1761455438068,-296.2499,0.00028809,3]
[392416489,1761455440375,-4301.00068753,0.00028809,3]
[392416490,1761455440384,-47070.3621179,0.00028809,3]
[392416491,1761455440395,-500.0,0.00028809,3]
[392416492,1761455440403,-150.0,0.00028809,3]
[392416493,1761455440413,-150.0,0.00028809,3]
[392416494,1761455440423,-500.0,0.00028809,2]
[392416495,1761455440432,-150.0,0.00028809,2]
[392416496,1761455440441,-150.0,0.00028809,3]
[392416497,1761455440450,-150.0,0.00028809,3]
[392416498,1761455440460,-150.0,0.00028809,2]
[392416499,1761455440469,-150.0,0.00028809,3]
[392416500,1761455440480,-150.0,0.00028809,2]
[392416501,1761455440490,-500.0,0.00028809,3]
[392416502,1761455440499,-500.0,0.00028809,3]
[392416503,1761455440508,-151.0,0.00028809,30]
[392416504,1761455440518,-155.871394,0.00028809,30]
[392416505,1761455440527,-161.711421,0.00028809,30]
[392416507,1761455440537,-161.711421,0.00028809,30]
[392416508,1761455440547,-151.0,0.00028809,30]
[392416509,1761455440555,-151.0,0.00028809,30]
[392416510,1761455440564,-161.711421,0.00028809,30]
[392416511,1761455440573,-151.0,0.00028809,30]
[392416512,1761455440582,-152.425362,0.00028809,30]
[392416513,1761455440590,-161.711421,0.00028809,30]
[392416514,1761455440599,-152.680413,0.00028809,30]
[392416515,1761455440608,-195.716787,0.00028809,30]
[392416516,1761455440617,-151.0,0.00028809,30]
[392416517,1761455440626,-151.0,0.00028809,30]
[392416518,1761455440635,-151.0,0.00028809,30]
[392416519,1761455440644,-159.28242,0.00028809,30]
[392416520,1761455440654,-178.511794,0.00028809,30]
[392416521,1761455440663,-159.28242,0.00028809,30]
[392416522,1761455440672,-187.771722,0.00028809,30]
[392416523,1761455440681,-159.28242,0.00028809,30]
[392416524,1761455440690,-151.0,0.00028809,30]
[392416525,1761455440699,-159.28242,0.00028809,30]
[392416526,1761455440708,-151.0,0.00028809,30]
[392416527,1761455440717,-151.0,0.00028809,30]
[392416528,1761455440727,-155.78637,0.00028809,30]
[392416529,1761455440736,-151.0,0.00028809,30]
[392416530,1761455440746,-152.849516,0.00028809,30]
[392416531,1761455440755,-277.518397,0.00028809,30]
[392416532,1761455440764,-151.0,0.00028809,30]
[392416533,1761455440772,-156.230513,0.00028809,30]
[392416534,1761455440781,-154.043192,0.00028809,30]
[392416535,1761455440791,-151.0,0.00028809,30]
[392416536,1761455440800,-151.0,0.00028809,30]
[392416537,1761455440809,-151.0,0.00028809,30]
[392416538,1761455440818,-154.140582,0.00028809,30]
[392416539,1761455440827,-151.0,0.00028809,30]
[392416540,1761455440836,-194.705749,0.00028809,30]
[392416541,1761455440845,-151.0,0.00028809,30]
[392416542,1761455440854,-151.0,0.00028809,30]
[392416543,1761455440863,-151.0,0.00028809,30]
[392416544,1761455440872,-165.567449,0.00028809,30]
[392416545,1761455440881,-160.722081,0.00028809,30]
[392416546,1761455440890,-156.285173,0.00028809,30]
[392416547,1761455440899,-153.500078,0.00028809,30]
[392416548,1761455440908,-151.0,0.00028809,30]
[392416549,1761455440917,-152.584918,0.00028809,30]
[392416550,1761455440926,-151.0,0.00028809,30]
[392416551,1761455440935,-151.0,0.00028809,30]
[392416552,1761455440944,-151.0,0.00028809,30]
[392416553,1761455440952,-287.591241,0.00028809,30]
[392416554,1761455440961,-151.0,0.00028809,30]
[392416555,1761455440970,-234.551572,0.00028809,30]
[392416556,1761455440979,-715.56734321,0.00028818,2]
[392416557,1761455440988,-500.0,0.00028818,9]
[392416558,1761455440998,-500.0,0.00028818,9]
[392416559,1761455441008,-510.12248291,0.00028818,9]
[392416560,1761455441017,-500.0,0.00028818,9]
[392416561,1761455441028,-500.0,0.00028818,7]
[392416562,1761455441037,-514.72233265,0.00028818,2]
[392416563,1761455441046,-500.0,0.00028818,9]
[392416564,1761455441055,-500.0,0.00028818,9]
[392416565,1761455441064,-500.0,0.00028818,9]
[392416566,1761455441073,-258854.43218918,0.00028819,2]
[392416567,1761455441082,-155.087283,0.00028819,30]
[392416568,1761455441091,-151.0,0.00028819,30]
[392416569,1761455441101,-277.077009,0.00028819,30]
[392416570,1761455441112,-151.0,0.00028819,14]
[392416571,1761455441121,-153.715527,0.00028819,14]
[392416572,1761455441131,-153.476497,0.00028819,30]
[392416573,1761455441140,-152.70597,0.00028819,30]
[392416574,1761455441149,-379.64684034,0.00028819,2]
[392416575,1761455441159,-227.71221826,0.00028819,2]
[392416576,1761455441168,-151.0,0.00028819,30]
[392416577,1761455441178,-153.076879,0.00028819,30]
[392416578,1761455441187,-1047.070673,0.00028819,30]
[392416579,1761455441196,-1047.070673,0.00028819,30]
[392416580,1761455441206,-151.0,0.00028819,30]
[392416581,1761455441216,-1047.070673,0.00028819,30]
[392416582,1761455441225,-153.893702,0.00028819,30]
[392416583,1761455441236,-1047.070673,0.00028819,30]
[392416584,1761455441246,-151.0,0.00028819,30]
[392416585,1761455441256,-151.0,0.00028819,30]
[392416586,1761455441266,-151.834429,0.00028819,30]
[392416587,1761455441275,-156.693955,0.00028819,30]
[392416588,1761455441285,-229.349815,0.00028819,30]
[392416589,1761455441294,-152.752776,0.00028819,30]
[392416590,1761455441303,-151.0,0.00028819,30]
[392416591,1761455441313,-151.653567,0.00028819,30]
[392416592,1761455441323,-155.997104,0.00028819,30]
[392416593,1761455441337,-151.0,0.00028819,30]
[392416594,1761455441347,-151.0,0.00028819,30]
[392416595,1761455441357,-151.0,0.00028819,30]
[392416596,1761455441368,-152.044053,0.00028819,30]
[392416597,1761455441377,-151.0,0.00028819,30]
[392416598,1761455441387,-151.0,0.00028819,30]
[392416599,1761455441397,-151.0,0.00028819,30]
[392416600,1761455441409,-151.0,0.00028819,30]
[392416601,1761455441420,-151.0,0.00028819,30]
[392416602,1761455441429,-151.0,0.00028819,30]
[392416603,1761455441439,-161.711421,0.00028819,30]
[392416604,1761455441450,-161.711421,0.00028819,30]
[392416605,1761455441460,-160.121744,0.00028819,30]
[392416606,1761455441471,-151.0,0.00028819,30]
[392416607,1761455441480,-161.711421,0.00028819,30]
[392416608,1761455441489,-151.0,0.00028819,30]
[392416609,1761455441498,-161.711421,0.00028819,30]
[392416610,1761455441508,-154.826267,0.00028819,30]
[392416611,1761455441518,-161.9098,0.00028819,30]
[392416612,1761455441528,-151.0,0.00028819,30]
[392416613,1761455441537,-159.28242,0.00028819,30]
[392416614,1761455441546,-159.28242,0.00028819,30]
[392416615,1761455441555,-159.28242,0.00028819,30]
[392416616,1761455441564,-151.0,0.00028819,30]
[392416617,1761455441573,-159.28242,0.00028819,30]
[392416618,1761455441582,-151.0,0.00028819,30]
[392416619,1761455441592,-183.044472,0.00028819,30]
[392416620,1761455441600,-151.0,0.00028819,30]
[392416621,1761455441609,-151.0,0.00028819,30]
[392416622,1761455441619,-151.0,0.00028819,30]
[392416623,1761455441628,-151.0,0.00028819,30]
[392416624,1761455441637,-155.101611,0.00028819,30]
[392416625,1761455441647,-151.0,0.00028819,30]
[392416626,1761455441656,-151.0,0.00028819,30]
[392416627,1761455441665,-182.314952,0.00028819,30]
[392416628,1761455441674,-151.0,0.00028819,30]
[392416629,1761455441683,-151.0,0.00028819,30]
[392416630,1761455441692,-151.0,0.00028819,30]
[392416631,1761455441702,-151.0,0.00028819,30]
[392416632,1761455441711,-151.0,0.00028819,30]
[392416633,1761455441720,-164.248936,0.00028819,30]
[392416634,1761455441729,-284.52409475,0.00028852,2]
[392416635,1761455441739,-517.06794764,0.00028864,3]
[392416636,1761455441748,-150.0,0.00028864,3]
[392416637,1761455441758,-154.58442419,0.00028864,3]
[392416638,1761455441767,-500.0,0.00028864,2]
[392416639,1761455441775,-150.0,0.00028864,3]
[392416640,1761455441784,-150.0,0.00028864,3]
[392416641,1761455441794,-150.0,0.00028864,3]
[392416642,1761455441802,-500.0,0.00028864,3]
[392416643,1761455441812,-500.0,0.00028864,3]
[392416644,1761455441821,-500.0,0.00028873,5]
[392416645,1761455441830,-500.97915448,0.00028873,5]
[392416646,1761455441840,-500.0,0.00028873,2]
[392416647,1761455441850,-525.74872055,0.00028873,5]
[392416648,1761455441860,-499.01910883,0.00028873,5]
[392416649,1761455441869,-501.46068794,0.00028873,5]
[392416650,1761455441878,-500.0,0.00028873,5]
[392416651,1761455441887,-500.0,0.00028873,3]
[392416652,1761455441897,-500.0,0.00028873,5]
[392416653,1761455441906,-523.77676593,0.00028873,5]
[392416654,1761455441916,-500.0,0.00028873,5]
[392416655,1761455441927,-500.0,0.00028873,5]
[392416656,1761455441938,-500.0,0.00028873,5]
[392416657,1761455441949,-500.0,0.00028873,5]
[392416658,1761455441959,-500.0,0.00028873,5]
[392416659,1761455441969,-500.0,0.00028873,5]
[392416660,1761455441978,-501.06467804,0.00028873,5]
[392416661,1761455441988,-500.0,0.00028873,5]
[392416662,1761455441999,-500.0,0.00028873,2]
[392416663,1761455442008,-472.77602554,0.00028873,5]
[392416664,1761455442018,-500.0,0.00028873,5]
[392416665,1761455442027,-301.64466037,0.00028886,30]
[392416666,1761455442038,-869.70827979,0.00028894,2]
[392416667,1761455442047,-1200.0,0.000289,10]
[392416668,1761455442057,-23535.1810589,0.000289,3]
[392416669,1761455442187,-35302.7715884,0.0002891,3]
[392416670,1761455442197,-150.0,0.00028919,3]
[392416671,1761455442207,-500.0,0.00028919,2]
[392416672,1761455442217,-150.0,0.00028919,3]
[392416673,1761455442226,-150.0,0.00028919,3]
[392416674,1761455442236,-150.0,0.00028919,3]
[392416675,1761455442245,-500.0,0.00028919,3]
[392416676,1761455442254,-500.0,0.00028919,3]
[392416677,1761455442263,-65646.51380584,0.0002892,2]
[392416678,1761455442272,-154.258095,0.0002892,30]
[392416679,1761455442282,-151.0,0.0002892,15]
[392416680,1761455442291,-151.0,0.0002892,15]
[392416681,1761455442301,-152.063485,0.0002892,30]
[392416682,1761455442309,-153.978181,0.0002892,30]
[392416683,1761455442317,-151.0,0.0002892,30]
[392416684,1761455442326,-154.004046,0.0002892,30]
[392416685,1761455442338,-155.158307,0.0002892,30]
[392416686,1761455442347,-153.257478,0.0002892,30]
[392416687,1761455442356,-151.0,0.0002892,30]
[392416688,1761455442364,-153.358032,0.0002892,30]
[392416689,1761455442373,-151.0,0.0002892,30]
[392416690,1761455442382,-151.0,0.0002892,30]
[392416691,1761455442391,-153.708271,0.0002892,30]
[392416692,1761455442399,-157.625462,0.0002892,30]
[392416693,1761455442408,-151.0,0.0002892,30]
[392416694,1761455442417,-151.0,0.0002892,30]
[392416695,1761455442426,-151.0,0.0002892,30]
[392416696,1761455442435,-151.0,0.0002892,30]
[392416697,1761455442444,-151.0,0.0002892,30]